lending/lending_fUSD_20240603
["ID","MTS","AMOUNT","RATE_DAILY","PERIOD"]
[328478684,1717428640118,-286.78630768,0.00031677,4]
[328478685,1717428640128,-500.0,0.00031677,4]
[328478686,1717428640137,-441.65928745,0.00031677,4]
[328478687,1717428640147,-500.0,0.00031677,4]
[328478688,1717428640156,-500.0,0.00031677,4]
[328478689,1717428640166,-500.0,0.00031677,4]
[328478690,1717428640175,-500.0,0.00031677,4]
[328478691,1717428640185,-500.0,0.00031677,4]
[328478692,1717428640194,-500.0,0.00031677,4]
[328478693,1717428640204,-500.0,0.00031677,4]
[328478694,1717428640213,-279.23459306,0.00031677,4]
[328478695,1717428640223,-310.0,0.00031677,4]
[328478696,1717428640232,-636.80016338,0.00031677,4]
[328478697,1717428640242,-500.0,0.00031677,4]
[328478698,1717428640251,-508.1901405,0.00031677,4]
[328478699,1717428640261,-500.0,0.00031677,4]
[328478700,1717428640270,-500.0,0.00031677,4]
[328478701,1717428640280,-510.53680889,0.00031678,4]
[328478702,1717428640290,-500.0,0.00031678,4]
[328478703,1717428640299,-500.0,0.00031678,4]
[328478704,1717428640309,-500.0,0.00031678,4]
[328478705,1717428640318,-500.0,0.00031678,4]
[328478706,1717428640328,-500.0,0.00031678,4]
[328478707,1717428640343,-500.0,0.00031678,4]
[328478708,1717428640352,-541.54190256,0.00031678,4]
[328478709,1717428640362,-500.0,0.00031678,4]
[328478710,1717428640371,-500.0,0.00031678,4]
[328478711,1717428640383,-500.0,0.00031678,4]
[328478712,1717428640393,-500.0,0.00031678,4]
[328478713,1717428640404,-500.0,0.00031678,4]
[328478714,1717428640416,-500.0,0.00031678,4]
[328478715,1717428640426,-500.0,0.00031678,4]
[328478716,1717428640436,-500.0,0.00031678,4]
[328478717,1717428640446,-500.0,0.00031679,4]
[328478718,1717428640455,-500.0,0.00031679,4]
[328478719,1717428640598,-500.0,0.00031679,4]
[328478720,1717428640608,-500.0,0.00031679,4]
[328478721,1717428640618,-500.0,0.00031679,4]
[328478722,1717428640628,-500.0,0.00031679,4]
[328478723,1717428640638,-500.0,0.00031679,4]
[328478724,1717428640649,-500.0,0.00031679,4]
[328478725,1717428640658,-295.87338244,0.00031679,4]
[328478726,1717428640668,-500.0,0.00031679,4]
[328478727,1717428640681,-218.0,0.0003172,2]
[328478728,1717428640691,-218.0,0.0003172,2]
[328478729,1717428640700,-500.0,0.0003178,4]
[328478730,1717428640710,-500.0,0.0003178,4]
[328478731,1717428640719,-782.25,0.0003178,4]
[328478732,1717428640729,-500.0,0.0003178,4]
[328478733,1717428640739,-500.0,0.0003178,4]
[328478734,1717428640748,-1081.08,0.0003178,4]
[328478735,1717428640758,-500.0,0.0003178,4]
[328478736,1717428640769,-500.0,0.0003178,4]
[328478737,1717428640779,-849.78,0.0003178,4]
[328478738,1717428640788,-1640.91,0.0003178,4]
[328478739,1717428640798,-500.0,0.0003178,4]
[328478740,1717428640808,-276.80480388,0.0003178,4]
[328478741,1717428640817,-332.81,0.0003178,4]
[328478742,1717428640826,-949.76,0.0003178,4]
[328478743,1717428640835,-1225.18,0.0003178,4]
[328478744,1717428640845,-1183.96,0.0003178,4]
[328478745,1717428640854,-1720.7,0.0003178,4]
[328478746,1717428640863,-530.07,0.0003178,4]
[328478747,1717428640873,-622.56,0.0003178,4]
[328478748,1717428640882,-1159.48,0.0003178,4]
[328478749,1717428640891,-560.32,0.0003178,4]
[328478750,1717428640902,-699.86,0.0003178,4]
[328478751,1717428640911,-4060.59,0.0003178,4]
[328478752,1717428640921,-500.0,0.0003178,4]
[328478753,1717428640931,-500.0,0.0003178,4]
[328478754,1717428640941,-500.0,0.0003178,4]
[328478755,1717428640950,-500.0,0.0003178,4]
[328478756,1717428640960,-575.2,0.0003178,4]
[328478757,1717428640970,-500.0,0.0003178,4]
[328478758,1717428640979,-535.17,0.0003178,4]
[328478759,1717428640989,-500.0,0.0003178,4]
[328478760,1717428640998,-500.0,0.0003178,4]
[328478761,1717428641008,-500.0,0.0003178,4]
[328478762,1717428641017,-500.0,0.0003178,4]
[328478763,1717428641027,-500.0,0.0003178,4]
[328478764,1717428641036,-500.0,0.0003178,4]
[328478765,1717428641046,-500.0,0.0003178,4]
[328478766,1717428641055,-500.0,0.0003178,4]
[328478767,1717428641064,-1660.69,0.0003178,4]
[328478768,1717428641074,-1019.14,0.0003178,4]
[328478769,1717428641083,-500.0,0.0003178,4]
[328478770,1717428641092,-479.05,0.0003178,4]
[328478771,1717428641101,-2321.29,0.0003178,4]
[328478772,1717428641110,-500.0,0.0003178,4]
[328478773,1717428641119,-500.0,0.0003178,4]
[328478774,1717428641128,-500.0,0.0003178,4]
[328478775,1717428641138,-564.94,0.0003178,4]
[328478776,1717428641148,-743.06,0.0003178,4]
[328478777,1717428641157,-500.0,0.0003178,4]
[328478778,1717428641166,-747.22,0.0003178,4]
[328478779,1717428641175,-500.0,0.0003178,4]
[328478780,1717428641185,-1136.59348616,0.00031812,15]
[328478781,1717428641194,-168.811657,0.00031919,2]
[328478782,1717428641203,-151.93380005,0.00031937,7]
[328478783,1717428641214,-156.04544168,0.00031946,7]
[328478784,1717428641225,-500.0,0.00031951,4]
[328478785,1717428641234,-500.0,0.00031951,4]
[328478786,1717428641243,-197.11525918,0.00031951,4]
[328478787,1717428641252,-504.8970778,0.00031951,4]
[328478788,1717428641261,-500.0,0.00031951,4]
[328478789,1717428641271,-500.0,0.00031951,4]
[328478790,1717428641280,-553.84697319,0.00031951,4]
[328478791,1717428641289,-500.0,0.00031951,4]
[328478792,1717428641298,-500.0,0.00031951,4]
[328478793,1717428641309,-500.0,0.00031951,4]
[328478794,1717428641318,-500.0,0.00031951,4]
[328478795,1717428641328,-500.0,0.00031951,4]
[328478796,1717428641340,-500.0,0.00031952,4]
[328478797,1717428641351,-500.0,0.00031952,4]
[328478798,1717428641361,-500.0,0.00031953,4]
[328478799,1717428641371,-7427.16,0.00032024,5]
[328478800,1717428641381,-1368.13122643,0.00032026,2]
[328478801,1717428641391,-161.5012716,0.00032047,7]
[328478802,1717428641400,-500.0,0.00032054,4]
[328478803,1717428641410,-500.0,0.00032054,4]
[328478804,1717428641419,-782.25,0.00032054,4]
[328478805,1717428641432,-500.0,0.00032054,4]
[328478806,1717428641441,-500.0,0.00032054,4]
[328478807,1717428641451,-1081.08,0.00032054,4]
[328478808,1717428641461,-500.0,0.00032054,4]
[328478809,1717428641470,-500.0,0.00032054,4]
[328478810,1717428641479,-849.78,0.00032054,4]
[328478811,1717428641489,-1640.91,0.00032054,4]
[328478812,1717428641498,-500.0,0.00032054,4]
[328478813,1717428641507,-949.76,0.00032054,4]
[328478814,1717428641517,-1225.18,0.00032054,4]
[328478815,1717428641528,-1183.96,0.00032054,4]
[328478816,1717428641537,-1720.7,0.00032054,4]
[328478817,1717428641548,-530.07,0.00032054,4]
[328478818,1717428641558,-622.56,0.00032054,4]
[328478819,1717428641568,-1159.48,0.00032054,4]
[328478820,1717428641577,-560.32,0.00032054,4]
[328478821,1717428641587,-699.86,0.00032054,4]
[328478822,1717428641598,-4060.59,0.00032054,4]
[328478823,1717428641607,-312.45,0.00032054,4]
[328478824,1717428641618,-500.0,0.00032054,4]
[328478825,1717428641627,-500.0,0.00032054,4]
[328478826,1717428641637,-500.0,0.00032054,4]
[328478827,1717428641647,-575.2,0.00032054,4]
[328478828,1717428641657,-500.0,0.00032054,4]
[328478829,1717428641666,-535.17,0.00032054,4]
[328478830,1717428641676,-500.0,0.00032054,4]
[328478831,1717428641686,-500.0,0.00032054,4]
[328478832,1717428641695,-500.0,0.00032054,4]
[328478833,1717428641706,-500.0,0.00032054,4]
[328478834,1717428641715,-500.0,0.00032054,4]
[328478835,1717428641724,-500.0,0.00032054,4]
[328478836,1717428641735,-500.0,0.00032054,4]
[328478837,1717428641745,-500.0,0.00032054,4]
[328478838,1717428641755,-1660.69,0.00032054,4]
[328478839,1717428641765,-1019.14,0.00032054,4]
[328478840,1717428641774,-500.0,0.00032054,4]
[328478841,1717428641784,-2321.29,0.00032054,4]
[328478842,1717428641793,-500.0,0.00032054,4]
[328478843,1717428641802,-500.0,0.00032054,4]
[328478844,1717428641812,-500.0,0.00032054,4]
[328478845,1717428641821,-564.94,0.00032054,4]
[328478846,1717428641831,-743.06,0.00032054,4]
[328478847,1717428641841,-500.0,0.00032054,4]
[328478848,1717428641851,-747.22,0.00032054,4]
[328478849,1717428641860,-500.0,0.00032054,4]
[328478850,1717428641870,-2500.0,0.00032086,2]
[328478851,1717428641879,-155.74834842,0.00032178,7]
[328478852,1717428641888,-167.0,0.00032209,2]
[328478853,1717428641899,-1028.35,0.00032221,2]
[328478854,1717428641909,-500.0,0.00032225,4]
[328478855,1717428641918,-500.0,0.00032225,4]
[328478856,1717428641928,-500.0,0.00032225,4]
[328478857,1717428641937,-187.68935479,0.00032225,4]
[328478858,1717428641947,-500.0,0.00032225,4]
[328478859,1717428641956,-500.0,0.00032225,4]
[328478860,1717428641966,-500.0,0.00032225,4]
[328478861,1717428641975,-499.50851822,0.00032225,4]
[328478862,1717428641985,-309.59,0.00032226,4]
[328478863,1717428641995,-500.0,0.00032227,4]
[328478864,1717428642005,-1718.97787105,0.00032228,4]
[328478865,1717428642015,-218.0,0.0003224,2]
[328478866,1717428642024,-247.0,0.0003224,2]
[328478867,1717428642033,-218.0,0.0003224,2]
[328478868,1717428642043,-247.0,0.0003224,2]
[328478869,1717428642053,-221.0,0.0003224,2]
[328478870,1717428642062,-2500.0,0.00032241,2]
[328478871,1717428642072,-1136.59348616,0.00032274,15]
[328478872,1717428642083,-2500.0,0.00032296,2]
[328478873,1717428642092,-492.0,0.00032306,3]
[328478874,1717428642101,-1718.97787095,0.00032316,4]
[328478875,1717428642111,-2500.0,0.00032323,2]
[328478876,1717428642120,-500.0,0.00032328,4]
[328478877,1717428642130,-500.0,0.00032328,4]
[328478878,1717428642140,-782.25,0.00032328,4]
[328478879,1717428642151,-500.0,0.00032328,4]
[328478880,1717428642160,-500.0,0.00032328,4]
[328478881,1717428642169,-1081.08,0.00032328,4]
[328478882,1717428642179,-500.0,0.00032328,4]
[328478883,1717428642189,-500.0,0.00032328,4]
[328478884,1717428642198,-849.78,0.00032328,4]
[328478885,1717428642208,-1640.91,0.00032328,4]
[328478886,1717428642217,-343.31,0.00032328,4]
[328478887,1717428642227,-949.76,0.00032328,4]
[328478888,1717428642236,-1225.18,0.00032328,4]
[328478889,1717428642246,-1183.96,0.00032328,4]
[328478890,1717428642255,-1720.7,0.00032328,4]
[328478891,1717428642266,-530.07,0.00032328,4]
[328478892,1717428642275,-622.56,0.00032328,4]
[328478893,1717428642285,-1159.48,0.00032328,4]
[328478894,1717428642294,-560.32,0.00032328,4]
[328478895,1717428642304,-699.86,0.00032328,4]
[328478896,1717428642315,-4060.59,0.00032328,4]
[328478897,1717428642325,-500.0,0.00032328,4]
[328478898,1717428642336,-500.0,0.00032328,4]
[328478899,1717428642348,-500.0,0.00032328,4]
[328478900,1717428642358,-575.2,0.00032328,4]
[328478901,1717428642368,-500.0,0.00032328,4]
[328478902,1717428642378,-535.17,0.00032328,4]
[328478903,1717428642390,-500.0,0.00032328,4]
[328478904,1717428642402,-500.0,0.00032328,4]
[328478905,1717428642414,-500.0,0.00032328,4]
[328478906,1717428642424,-500.0,0.00032328,4]
[328478907,1717428642434,-500.0,0.00032328,4]
[328478908,1717428642443,-500.0,0.00032328,4]
[328478909,1717428642452,-500.0,0.00032328,4]
[328478910,1717428642462,-500.0,0.00032328,4]
[328478911,1717428642472,-1660.69,0.00032328,4]
[328478912,1717428642481,-1019.14,0.00032328,4]
[328478913,1717428642490,-500.0,0.00032328,4]
[328478914,1717428642500,-2321.29,0.00032328,4]
[328478915,1717428642509,-500.0,0.00032328,4]
[328478916,1717428642518,-497.69,0.00032328,4]
[328478917,1717428642528,-500.0,0.00032328,4]
[328478918,1717428642537,-564.94,0.00032328,4]
[328478919,1717428642547,-743.06,0.00032328,4]
[328478920,1717428642556,-500.0,0.00032328,4]
[328478921,1717428642566,-747.22,0.00032328,4]
[328478922,1717428642576,-500.0,0.00032328,4]
[328478923,1717428642586,-444.26,0.00032329,2]
[328478924,1717428642596,-871.81,0.00032329,2]
[328478925,1717428642605,-416.78,0.00032329,2]
[328478926,1717428642615,-872.23,0.00032329,2]
[328478927,1717428642625,-416.78,0.00032329,2]
[328478929,1717428642634,-872.23,0.00032329,2]
[328478930,1717428642644,-416.78,0.00032329,2]
[328478932,1717428642657,-872.23,0.00032329,2]
[328478934,1717428642667,-872.23,0.00032329,2]
[328478936,1717428642676,-416.78,0.00032329,2]
[328478937,1717428642686,-416.78,0.00032329,2]
[328478938,1717428642695,-872.23,0.00032329,2]
[328478939,1717428642705,-872.23,0.00032329,2]
[328478940,1717428642715,-416.78,0.00032329,2]
[328478941,1717428642724,-449.010381,0.00032329,14]
[328478942,1717428642734,-678.96,0.00032376,2]
[328478943,1717428642743,-678.96,0.00032377,2]
[328478944,1717428642753,-183313.03989957,0.00032401,13]
[328478945,1717428642762,-2500.0,0.00032401,2]
[328478946,1717428642772,-1718.97787095,0.00032405,4]
[328478947,1717428642782,-157.42620523,0.00032444,7]
[328478948,1717428642792,-150.0,0.00032449,7]
[328478949,1717428642802,-152.9914788,0.00032459,7]
[328478950,1717428642812,-352.56,0.00032466,2]
[328478951,1717428642821,-500.0,0.00032478,10]
[328478952,1717428642830,-388.050492,0.00032478,10]
[328478953,1717428642840,-1718.97787095,0.00032493,4]
[328478954,1717428642849,-500.0,0.00032499,4]
[328478955,1717428642859,-465.22495892,0.00032499,4]
[328478956,1717428642868,-500.0,0.00032499,4]
[328478957,1717428642877,-500.0,0.00032499,4]
[328478958,1717428642887,-515.71637087,0.00032499,4]
[328478959,1717428642896,-151.93380005,0.00032548,7]
[328478960,1717428642909,-152.9914788,0.00032559,7]
[328478961,1717428642919,-5000.0,0.00032565,2]
[328478962,1717428642928,-2519.33,0.00032566,2]
[328478963,1717428642937,-5031.5780041,0.00032569,2]
[328478964,1717428642946,-5000.0,0.00032569,2]
[328478965,1717428642955,-1718.97787095,0.00032581,4]
[328478966,1717428642964,-300.726,0.00032599,2]
[328478970,1717428642974,-216.0,0.00032599,2]
[328478974,1717428642984,-545.0,0.00032599,2]
[328478977,1717428642993,-3167.0,0.00032599,2]
[328478982,1717428643003,-1468.0,0.00032599,2]
[328478985,1717428643014,-36983.975,0.00032599,2]
[328478987,1717428643023,-1830.0,0.00032599,2]
[328478989,1717428643032,-1830.0,0.00032599,2]
[328478991,1717428643042,-608.0,0.00032599,2]
[328478993,1717428643051,-2268.30989723,0.000326,2]
[328478994,1717428643061,-999.6,0.000326,2]
[328478995,1717428643070,-302.66,0.000326,2]
[328478996,1717428643080,-500.0,0.00032602,4]
[328478997,1717428643089,-500.0,0.00032602,4]
[328478998,1717428643099,-782.25,0.00032602,4]
[328479000,1717428643109,-500.0,0.00032602,4]
[328479003,1717428643118,-500.0,0.00032602,4]
[328479004,1717428643128,-1081.08,0.00032602,4]
[328479006,1717428643137,-500.0,0.00032602,4]
[328479007,1717428643146,-500.0,0.00032602,4]
[328479008,1717428643157,-849.78,0.00032602,4]
[328479009,1717428643167,-1640.91,0.00032602,4]
[328479010,1717428643176,-949.76,0.00032602,4]
[328479011,1717428643185,-1225.18,0.00032602,4]
[328479012,1717428643195,-1183.96,0.00032602,4]
[328479013,1717428643203,-1720.7,0.00032602,4]
[328479014,1717428643213,-530.07,0.00032602,4]
[328479015,1717428643222,-622.56,0.00032602,4]
[328479016,1717428643232,-1159.48,0.00032602,4]
[328479017,1717428643242,-560.32,0.00032602,4]
[328479018,1717428643251,-699.86,0.00032602,4]
[328479019,1717428643261,-4060.59,0.00032602,4]
[328479020,1717428643389,-500.0,0.00032602,4]
[328479021,1717428643399,-500.0,0.00032602,4]
[328479022,1717428643411,-500.0,0.00032602,4]
[328479023,1717428643420,-575.2,0.00032602,4]
[328479024,1717428643433,-500.0,0.00032602,4]
[328479025,1717428643443,-535.17,0.00032602,4]
[328479026,1717428643453,-500.0,0.00032602,4]
[328479027,1717428643463,-500.0,0.00032602,4]
[328479028,1717428643473,-500.0,0.00032602,4]
[328479029,1717428643482,-500.0,0.00032602,4]
[328479030,1717428643492,-500.0,0.00032602,4]
[328479031,1717428643501,-182.90056683,0.00032602,4]
[328479032,1717428643511,-500.0,0.00032602,4]
[328479033,1717428643523,-500.0,0.00032602,4]
[328479034,1717428643532,-1660.69,0.00032602,4]
[328479035,1717428643542,-1019.14,0.00032602,4]
[328479036,1717428643551,-467.56779338,0.00032602,4]
[328479037,1717428643560,-2321.29,0.00032602,4]
[328479038,1717428643570,-500.0,0.00032602,4]
[328479039,1717428643579,-500.0,0.00032602,4]
[328479040,1717428643588,-564.94,0.00032602,4]
[328479041,1717428643598,-743.06,0.00032602,4]
[328479042,1717428643607,-500.0,0.00032602,4]
[328479043,1717428643617,-747.22,0.00032602,4]
[328479044,1717428643626,-500.0,0.00032602,4]
[328479045,1717428643635,-1368.13122643,0.00032613,2]
[328479046,1717428643644,-928.69933237,0.00032632,2]
[328479047,1717428643655,-155.0,0.00032632,4]
[328479048,1717428643665,-169.1813528,0.00032654,7]
[328479049,1717428643674,-1718.97787095,0.0003267,4]
[328479050,1717428643684,-1136.59348616,0.00032737,15]
[328479051,1717428643694,-3814.0,0.00032746,2]
[328479052,1717428643703,-161.5012716,0.00032748,7]
[328479053,1717428643712,-1718.97787095,0.00032758,4]
[328479054,1717428643722,-1000.0,0.00032768,2]
[328479055,1717428643731,-218.0,0.0003277,2]
[328479056,1717428643740,-247.0,0.0003277,2]
[328479057,1717428643750,-218.0,0.0003277,2]
[328479058,1717428643759,-247.0,0.0003277,2]
[328479059,1717428643768,-221.0,0.0003277,2]
[328479060,1717428643778,-635.26148166,0.00032773,4]
[328479061,1717428643788,-500.0,0.00032773,4]
[328479062,1717428643798,-500.0,0.00032773,4]
[328479064,1717428643807,-247.0,0.0003278,2]
[328479066,1717428643817,-292.0,0.0003278,2]
[328479067,1717428643826,-2500.0,0.00032841,2]
[328479068,1717428643836,-1718.97787095,0.00032847,4]
[328479069,1717428643845,-161.5012716,0.00032865,7]
[328479070,1717428643854,-177.88828217,0.00032871,2]
[328479071,1717428643864,-500.0,0.00032876,4]
[328479072,1717428643873,-500.0,0.00032876,4]
[328479073,1717428643882,-782.25,0.00032876,4]
[328479074,1717428643891,-500.0,0.00032876,4]
[328479075,1717428643901,-500.0,0.00032876,4]
[328479076,1717428643911,-1081.08,0.00032876,4]
[328479077,1717428643920,-500.0,0.00032876,4]
[328479078,1717428643930,-500.0,0.00032876,4]
[328479079,1717428643940,-849.78,0.00032876,4]
[328479080,1717428643949,-1640.91,0.00032876,4]
[328479081,1717428643959,-949.76,0.00032876,4]
[328479082,1717428643969,-1225.18,0.00032876,4]
[328479083,1717428643979,-1183.96,0.00032876,4]
[328479084,1717428643988,-1720.7,0.00032876,4]
[328479085,1717428643998,-530.07,0.00032876,4]
[328479086,1717428644007,-622.56,0.00032876,4]
[328479087,1717428644018,-1159.48,0.00032876,4]
[328479088,1717428644028,-560.32,0.00032876,4]
[328479089,1717428644037,-699.86,0.00032876,4]
[328479090,1717428644047,-4060.59,0.00032876,4]
[328479091,1717428644056,-250.93558512,0.00032876,4]
[328479092,1717428644065,-500.0,0.00032876,4]
[328479093,1717428644075,-500.0,0.00032876,4]
[328479094,1717428644084,-575.2,0.00032876,4]
[328479095,1717428644093,-212.99,0.00032876,4]
[328479096,1717428644102,-535.17,0.00032876,4]
[328479097,1717428644112,-500.0,0.00032876,4]
[328479098,1717428644122,-500.0,0.00032876,4]
[328479099,1717428644132,-500.0,0.00032876,4]
[328479100,1717428644141,-500.0,0.00032876,4]
[328479101,1717428644151,-500.0,0.00032876,4]
[328479102,1717428644160,-500.0,0.00032876,4]
[328479103,1717428644170,-500.0,0.00032876,4]
[328479104,1717428644179,-1660.69,0.00032876,4]
[328479105,1717428644189,-1019.14,0.00032876,4]
[328479106,1717428644198,-2321.29,0.00032876,4]
[328479107,1717428644207,-500.0,0.00032876,4]
[328479108,1717428644217,-564.94,0.00032876,4]
[328479109,1717428644227,-743.06,0.00032876,4]
[328479110,1717428644236,-500.0,0.00032876,4]
[328479111,1717428644245,-747.22,0.00032876,4]
[328479112,1717428644255,-500.0,0.00032876,4]
[328479113,1717428644265,-300.0,0.00032899,10]
[328479114,1717428644276,-250000.0,0.000329,5]
[328479115,1717428644287,-153.604384,0.000329,7]
[328479116,1717428644296,-155.766321,0.000329,7]
[328479117,1717428644306,-151.0,0.000329,7]
[328479118,1717428644316,-151.961592,0.000329,7]
[328479119,1717428644325,-225.624903,0.000329,7]
[328479120,1717428644336,-151.0,0.000329,7]
[328479121,1717428644348,-151.0,0.000329,7]
[328479122,1717428644358,-151.0,0.000329,7]
[328479123,1717428644367,-151.0,0.000329,7]
[328479124,1717428644377,-151.0,0.000329,7]
[328479125,1717428644388,-156.714563,0.000329,7]
[328479126,1717428644397,-151.0,0.000329,7]
[328479127,1717428644407,-160.077414,0.000329,7]
[328479128,1717428644419,-151.0,0.000329,7]
[328479129,1717428644429,-154.929924,0.000329,7]
[328479130,1717428644438,-169.758602,0.000329,7]
[328479131,1717428644448,-151.0,0.000329,7]
[328479132,1717428644457,-154.54264,0.000329,7]
[328479133,1717428644466,-151.0,0.000329,7]
[328479134,1717428644477,-489.444939,0.000329,7]
[328479135,1717428644488,-155.208532,0.000329,7]
[328479136,1717428644497,-489.444939,0.000329,7]
[328479137,1717428644507,-151.0,0.000329,7]
[328479138,1717428644517,-151.0,0.000329,7]
[328479139,1717428644528,-151.0,0.000329,7]
[328479140,1717428644537,-151.0,0.000329,7]
[328479141,1717428644546,-158.242262,0.000329,7]
[328479142,1717428644555,-166.951655,0.000329,7]
[328479143,1717428644565,-161.150241,0.000329,7]
[328479144,1717428644574,-151.0,0.000329,7]
[328479145,1717428644583,-300.996953,0.000329,7]
[328479146,1717428644593,-154.609441,0.000329,7]
[328479147,1717428644602,-153.21613595,0.00032907,7]
[328479148,1717428644611,-161.5012716,0.00032926,7]
[328479149,1717428644621,-1718.97787095,0.00032935,4]
[328479150,1717428644631,-300.0,0.00032951,10]
[328479151,1717428644641,-154.649,0.00032962,2]
[328479152,1717428644650,-176.46650098,0.00032967,3]
[328479153,1717428644660,-46240.43545132,0.0003297,2]
[328479154,1717428644669,-167.940979,0.0003297,7]
[328479155,1717428644678,-151.0,0.0003297,7]
[328479156,1717428644687,-151.0,0.0003297,7]
[328479157,1717428644696,-151.0,0.0003297,7]
[328479158,1717428644706,-151.0,0.0003297,7]
[328479159,1717428644715,-151.0,0.0003297,7]
[328479160,1717428644724,-151.0,0.0003297,7]
[328479161,1717428644733,-1796.2803,0.0003297,2]
[328479162,1717428644743,-151.0,0.0003297,7]
[328479163,1717428644753,-155.74834842,0.00032971,7]
[328479164,1717428644763,-300.0,0.00032979,10]
[328479165,1717428644772,-2009.21497381,0.00033,15]
[328479166,1717428644781,-1000.0,0.00033,2]
[328479167,1717428644790,-1000.0,0.00033,2]
[328479168,1717428644799,-1000.0,0.00033,2]
[328479169,1717428644808,-1000.0,0.00033,2]
[328479170,1717428644817,-1000.0,0.00033,2]
[328479171,1717428644826,-1000.0,0.00033,2]
[328479172,1717428644835,-1000.0,0.00033,2]
[328479173,1717428644843,-1000.0,0.00033,2]
[328479174,1717428644852,-1000.0,0.00033,2]
[328479175,1717428644861,-1000.0,0.00033,2]
[328479176,1717428644870,-381.50348138,0.0003301,2]
[328479177,1717428644880,-157.42620523,0.00033023,7]
[328479178,1717428644889,-1718.97787095,0.00033023,5]
[328479179,1717428644899,-500.0,0.00033033,10]
[328479180,1717428644909,-200.0,0.00033033,10]
[328479181,1717428644919,-166.66666665,0.00033038,7]
[328479182,1717428644928,-154.65,0.00033045,2]
[328479183,1717428644937,-500.0,0.00033047,4]
[328479184,1717428644947,-330.32189047,0.00033047,4]
[328479185,1717428644956,-1718.97787095,0.00033112,5]
[328479186,1717428644966,-300.0,0.00033147,10]
[328479187,1717428644976,-500.0,0.0003315,4]
[328479188,1717428644985,-500.0,0.0003315,4]
[328479189,1717428644994,-151.0,0.0003315,7]
[328479190,1717428645003,-161.716508,0.0003315,7]
[328479191,1717428645012,-151.0,0.0003315,7]
[328479192,1717428645021,-161.860263,0.0003315,7]
[328479193,1717428645030,-164.167133,0.0003315,7]
[328479194,1717428645039,-161.851879,0.0003315,7]
[328479195,1717428645048,-151.0,0.0003315,7]
[328479196,1717428645057,-782.25,0.0003315,4]
[328479197,1717428645066,-500.0,0.0003315,4]
[328479198,1717428645075,-500.0,0.0003315,4]
[328479199,1717428645084,-1081.08,0.0003315,4]
[328479200,1717428645094,-500.0,0.0003315,4]
[328479201,1717428645103,-500.0,0.0003315,4]
[328479202,1717428645112,-849.78,0.0003315,4]
[328479203,1717428645121,-1640.91,0.0003315,4]
[328479204,1717428645131,-949.76,0.0003315,4]
[328479205,1717428645140,-1225.18,0.0003315,4]
[328479206,1717428645150,-1183.96,0.0003315,4]
[328479207,1717428645160,-1720.7,0.0003315,4]
[328479208,1717428645170,-530.07,0.0003315,4]
[328479209,1717428645179,-622.56,0.0003315,4]
[328479210,1717428645189,-1159.48,0.0003315,4]
[328479211,1717428645199,-560.32,0.0003315,4]